{"text_format":"1","workbook":"xlsx","n_sheets":11,"sheets":["NAVODILA","VNOS PODATKOV","17A PO ODLOČ","17C PO PODALJ ODL","18 UD ODL","19J LEG ODL","19K ODO BREZ GD ODL","19L ODO Z GD ODL","19M UD OBST ENOST ODL","19N GD IN UD ODL","BAZA PODATKOV"],"not_rendered":{"charts":0,"images":27,"macros":1,"external_links":0,"defined_names":37,"comments":0,"pivot_tables":0},"unopened":[],"bounds":{"document_bytes":16777216,"sheet_cells":100000,"rows_first":2000,"rows_last":500,"rows_between":2000,"halvings":0,"cell_chars":16384,"cell_head_chars":4096},"cells_cut":0,"cells_raw":0,"read":"whole","date_system":"1900"}

{"sheet":"NAVODILA","index":0,"n_rows":41,"n_cols":1,"rows_kept":41,"cut":false,"hidden":false,"merged":[]}
[]
["NAVODILA"]
[]
["Aplikacija za pripravo obrazcev v zvezi z graditvijo objektov je pripomoček za pripravo dokumentacije in zahtevkov, izdelan v skladu s Pravilnikom o projektni in drugi dokumentaciji ter obrazcih pri graditvi objektov (Uradni list RS, št. 30/23). Nova verzija obrazcev glede na prejšnjo uvaja nekaj sprememb, opisanih v nadaljevanju. "]
[]
["Za pravilno delovanje navigacijskih in drugih ukaznih gumbov je potrebno ob odpiranju dokumenta omogočiti uporabo makrov. Uporaba makrov je vezana izključno na delovanje navigacijskih gumbov in za prenašanje podatkov med datotekami. Vse osnovne funkcionalnosti, torej vnos in izpis podatkov, delujejo tudi brez delovanja makrov. Namesto z uporabo navigacijskih gumbov lahko posamezne liste izbirate v spodnji vrstici aplikacije. "]
[]
["DATOTEKE"]
[]
["Priloge so razdeljene v več datotek. Vsaka izmed datotek je pripravljena za posamezno skupino uporabnikov (projektanti, izvajalci, mnenjedajalci, upravni organ) tako, da vključuje vse faze posameznega postopka. Sklop za projektante je dodatno razdeljen glede na zahtevnost nameravane gradnje. \nSeznam datotek:\n- projektanti - obrazci za zahtevne in manj zahtevne objekte\n- projektanti - obrazci za nezahtevne objekte\n- projektanti - obrazci za spremembo namembnosti\n- projektanti - manjša rekonstrukcija\n- projektanti - legalizacije\n- projektanti - začasni objekti\n- izvajalci - DZO\n- mnenjedajalci - projektni pogoji in mnenja\n- upravni organ - odločbe\n\nV nadaljevanju so opisana navodila za uporabo obrazcev za upravni organ."]
[]
["ZAŠČITA PODATKOV"]
[]
["Vsi listi v datoteki so odklenjeni. Kljub temu priporočamo, da liste zaklenete tako, da na zavihku Pregled na traku v skupini Spremembe izberete Zaščiti list. Namen te osnovne zaščite je preprečiti nenamerno spreminjanje že izpolnjenih polj. \n\nOPOZORILO:\nPodatke lahko vnašate le v rumeno obarvana okenca, vrstice pa lahko dodajate le tam, kjer je to izrecno navedeno, sicer se podatki morda ne bodo prenesli pravilno!"]
[]
["KAZALO VSEBINE"]
[]
["List za vnos podatkov ima v zgornjem delu kazalo celotne vsebine. Vsebina je razporejena v tabelo po fazah upravnega postopka. Naslovi delujejo kot povezave na posamezne liste."]
[]
["VNAŠANJE PODATKOV"]
[]
["Polja za vnos podatkov so smiselno razdeljena na posamezna poglavja. Nekatere vsebine vnašamo s pomočjo spustnih menijev, pri nekaterih vsebinah pa je potrebno označiti izbiro. Pod posameznimi naslovi so opombe z dodatnimi navodili za izpolnjevanje, stolpec A pa je odklenjen in je namenjen internim opombam uporabnika."]
[]
["PRENAŠANJE PODATKOV MED DATOTEKAMI"]
[]
["Aplikacija omogoča prenos podatkov iz datoteke projektanta. Če želimo prenesti podatke, lahko to storimo s pomočjo ustreznega gumba na listu vnos podatkov. Omogočen je prenos podatkov iz datotek za zahtevne in manj zahtevne objekte ter iz datotek za legalizacije. Pred prenosom morata biti izvorna in ciljna datoteka odprti. \n\nPoleg gumba za prenos podatkov je na voljo tudi gumb Počisti vnosna polja, s katerim izbrišemo vse vnešene vsebine iz lista vnos podatkov, ne pa tudi vsebin, ki se vnašajo direktno v posamezne obrazce."]
[]
["PRILAGAJANJE VIŠINE VRSTIC"]
[]
["Različne verzije programa na različne načine prikazujejo višino in širino celic, zato se lahko zgodi, da vsebina posameznih polj ni v celoti vidna. V tem primeru lahko višino celice spremenite tako, da v meniju Osnovno v skupini Poravnava izberete Prelomi besedilo, oziroma ročno spremenite višino vrstice tako, da najprej izberite celotno vrstico v stolpcu z oznakami vrstic (sivi stolpec s številkami vrstic na skrajni levi strani), na zavihku Osnovno v skupini Celice kliknite Oblika, nato pa v razdelku Velikost celice kliknite Samodejno prilagodi višino vrstice oziroma vpišete željeno višino vrstice. Enako velja za prilagajanje širine stolpcev."]
[]
["TISKANJE IN SHRANJEVANJE"]
[]
["Po končanem vnosu podatkov, potrebnih za izpolnjevanje določenega obrazca, lahko obrazec natisnete ali pa shranite kot .pdf dokument. Za tiskanje in pripravo .pdf dokumentov lahko uporabite ukazne gumbe ali pa izberete ustrezen ukaz v meniju."]
[]
["POPRAVKI V VERZIJI 3.1"]
[]
["- odklenjeni vsi obrazci."]
[]
[]
["NADALJUJ NA VNOS PODATKOV"]

{"sheet":"VNOS PODATKOV","index":1,"n_rows":116,"n_cols":17,"rows_kept":116,"cut":false,"hidden":false,"merged":[[10,2,10,3]]}
[null,null,"VSEBINA DATOTEKE:"]
[null,null,"ODLOČBE"]
[null,null,"obarvana polja delujejo kot povezave na ustrezne liste"]
[null,null,"POSTOPKI"]
[null,null,"PRIDOBIVANJE GRADBENEGA DOVOLJENJA","SPREMEMBA GRADBENEGA DOVOLJENJA","PRIJAVA PRIPRAVLJALNIH DEL","PRIJAVA ZAČETKA GRADNJE","POSKUSNO OBRATOVANJE","PODALJŠANJE POSKUSNEGA OBRATOVANJA","PRIDOBIVANJE UPORABNEGA DOVOLJENJA","SPREMEMBA INVESTITORJA","DOPOLNITEV VLOGE","PODALJŠANJE ROKA ZA DOPOLNITEV","LEGALIZACIJA"]
[null,null,"ODLOČBE"]
[null,null,null,null,null,null,"17A - ODLOČBA O POSKUSNEM OBRATOVANJU","17C - ODLOČBA O PODALJŠANJU POSKUSNEGA OBRATOVANJA","18 - UPORABNO DOVOLJENJE",null,null,null,"19J - ODLOČBA O LEGALIZACIJI","19K - DOVOLJENJE ZA OBJEKT DALJŠEGA OBSTOJA BREZ GRADBENEGA DOVOLJENJA","19L - DOVOLJENJE ZA OBJEKT DALJŠEGA OBSTOJA Z GRADBENIM DOVOLJENJEM","19M - UPORABNO DOVOLJENJE ZA OBSTOJEČO ENOSTANOVANJSKO STAVBO","19N - ODLOČBA O PRIDOBLJENEM GRADBENEM IN UPORABNEM DOVOLJENJU"]
[]
[]
[]
["PROSTOR ZA OPOMBE ",null,"VNOS PODATKOV"]
[]
[null,"A","UDELEŽENCI PRI GRADITVI"]
[null,null,"INVESTITOR"]
[null,"A2","INVESTITOR"]
[null,null,"INVESTITOR 1"]
[null,null,"ime in priimek ali naziv družbe"]
[null,null,"naslov ali sedež družbe"]
[null,null,"INVESTITOR 2"]
[null,null,"ime in priimek ali naziv družbe"]
[null,null,"naslov ali sedež družbe"]
[null,null,"INVESTITOR 3"]
[null,null,"ime in priimek ali naziv družbe"]
[null,null,"naslov ali sedež družbe"]
[null,null,"PROJEKTANT"]
[null,"A4","PROJEKTANT "]
[null,null,"PODATKI O DRUŽBI"]
[null,null,"projektant (naziv družbe)"]
[null,"B","PODATKI O DOKUMENTACIJI"]
[]
[null,null,"postopek","PRIDOBIVANJE GRADBENEGA DOVOLJENJA","PRIJAVA PRIPRAVLJALNIH DEL","PRIJAVA DEL","PRIDOBIVANJE UPORABNEGA DOVOLJENJA","LEGALIZACIJA"]
[null,null,"številka projekta"]
[null,null,"datum izdelave"]
[null,"C","PODATKI O GRADNJI"]
[null,null,"OSNOVNI PODATKI"]
[null,"C1","OPIS GRADNJE"]
[null,null,"naziv gradnje"]
[null,null,"naziv gradnje se določi po namenu glavnega objekta"]
[null,null,"POSEBNI PRIMERI"]
[null,"C7","PODATKI O OBJEKTU, KI SE LEGALIZIRA"]
[null,null,"podatki se navedejo, če se poseg načrtuje na vodnih ali priobalnih zemljiščih v lasti države"]
[null,null,"naziv objekta ali dela objekta"]
[null,null,"kratek opis"]
[null,null,"naslov stavbe, če je določen"]
[null,null,"vrsta objekta"]
[null,null,"zahtevnost objekta"]
[null,null,"uporabno dovoljenje se nanaša na del objekta, ki bo skupaj z obstoječim objektom zagotavljal funkcionalno celoto",false]
[null,null,"ZEMLJIŠČA, NA KATERIH SE NAHAJA OBJEKT"]
[null,null,"številka katastrske občine"]
[null,null,"katastrska občina"]
[null,null,"parc.št."]
[null,null,"KLASIFIKACIJA PO CC-SI"]
[null,null,"stavba"]
[null,null,"gradbeno inženirski objekt"]
[null,null,"EVIDENTIRANOST"]
[null,null,"številka stavbe"]
[null,null,"številka posameznega dela stavbe"]
[null,null,"PREDMET ODLOČBE"]
[null,null,"ODLOČBA O PRIDOBLJENEM GRADBENEM IN UPORABNEM DOVOLJENJU SE NANAŠA NA:"]
[null,null,"enostanovanjsko stavbo, zgrajeno na podlagi gradbenega dovoljenja in v uporabi na dan 1. 1. 2003",false]
[null,null,"stavbo, zgrajeno pred 31. decembrom 1967",false]
[null,null,"posamezno stanovanje ali poslovni prostor v etažni lastnini, ki je bilo rekonstruirano na podlagi gradbenega dovoljenja",false]
[null,null,"objekt gospodarske javne infrastrukture, zgrajen pred 25. junijem 1991",false]
[null,null,"gradbeno inženirski objekt, zgrajeni pred 31. decembrom 1967",false]
[null,null,"objekt s področja obrambe, objekt s področja zaščite in reševanja ali objekt s področja notranjih zadev, ki se mu namembnost po 25. juniju 1991 ni spremenila",false]
[null,null,"objekt, ki se je pred 9. novembrom 1996 lahko zgradil na podlagi priglasitve del po 46. členu Zakona o graditvi objektov (Uradni list SRS, št. 34/84)",false]
[null,"C8","ENOSTANOVANJSKA STAVBA"]
[null,null,"enostanovanjska stavba ima izveden oziroma dokončan ovoj",false]
[null,"H","UPRAVNI POSTOPKI"]
[null,null,"UPRAVNI ORGAN"]
[null,"H1","NAVEDBA ORGANA, PRI KATEREM SE VLAGA ZAHTEVA"]
[null,null,"naziv"]
[null,null,"naslov"]
[null,null,"odgovorna oseba mnenjedajalca"]
[null,null,"postopek vodil"]
[null,null,"predpis oz. podlaga"]
[null,null,"GRADBENO DOVOLJENJE"]
[null,"H3","PODATKI O IZDANEM GRADBENEM DOVOLJENJU"]
[null,null,"Navedejo se vsa pridobljena gradbena dovoljenja. Izpolni se za spremembo GD, prijavo pričetka del in pripravljalnih del ter za pridobivanje uporabnega dovoljenja."]
[null,null,"navedba organa"]
[null,null,"številka dovoljenja"]
[null,null,"datum dovoljenja"]
[null,null,"dokončnost"]
[null,null,"pravnomočnost"]
[null,"H3","PODATKI O SPREMEMBI GRADBENEGA DOVOLJENJA"]
[null,null,"Navedejo se vsa pridobljena gradbena dovoljenja. Izpolni se za spremembo GD, prijavo pričetka del in pripravljalnih del ter za pridobivanje uporabnega dovoljenja."]
[null,null,"navedba organa"]
[null,null,"številka dovoljenja"]
[null,null,"datum dovoljenja"]
[null,null,"dokončnost"]
[null,null,"pravnomočnost"]
[null,null,"POSKUSNO OBRATOVANJE"]
[null,"H5","ODLOČBA O POSKUSNEM OBRATOVANJU"]
[null,null,"številka odločbe"]
[null,null,"datum odločbe"]
[null,null,"obdobje poskusnega obratovanja"]
[null,null,"obveznost opravljanja prvih meritev skladno s predpisi:"]
[null,null,"emisije snovi v zrak",false]
[null,null,"elektromagnetno sevanje",false]
[null,null,"odpadne vode",false]
[null,null,"hrup",false]
[null,null,null,false]
[null,null,null,false]
[null,"H5","ODLOČBA O PODALJŠANJU POSKUSNEGA OBRATOVANJA"]
[null,null,"številka odločbe"]
[null,null,"datum odločbe"]
[null,null,"datum podaljšanja poskusnega obratovanja"]
[null,null,"UPORABNO DOVOLJENJE"]
[null,"H5","ODLOČBA"]
[null,null,"številka odločbe"]
[null,null,"datum odločbe"]
[null,"H6","DOKAZILO O ZANESLJIVOSTI OBJEKTA"]
[null,null,"navedejo se vse vsa dokazila o zanesljivosti objekta"]
[null,null,"številka dokazila o zanesljivosti objekta"]
[null,null,"datum izdelave"]
[null,null,"izvajalec (naziv družbe)"]

{"sheet":"17A PO ODLOČ","index":2,"n_rows":70,"n_cols":2,"rows_kept":70,"cut":false,"hidden":false,"merged":[[15,0,15,1]]}
["PRILOGA 17A"]
["ODLOČBA O \nPOSKUSNEM OBRATOVANJU"]
[]
["UPRAVNI ORGAN"]
["navedba organa",{"$f":"'VNOS PODATKOV'!D72","v":0}]
["naslov",{"$f":"'VNOS PODATKOV'!D73","v":0}]
["št. odločbe",{"$f":"'VNOS PODATKOV'!D94","v":0}]
["datum",{"$f":"'VNOS PODATKOV'!D95","v":"00:00:00"}]
["postopek vodil (ime in priimek)",{"$f":"'VNOS PODATKOV'!D75","v":0}]
["podpis"]
["odgovorna oseba (ime in priimek)",{"$f":"'VNOS PODATKOV'!D74","v":0}]
["podpis"]
[]
["PREDPIS OZ. PODLAGA ZA ODLOČITEV",{"$f":"'VNOS PODATKOV'!D76","v":0}]
[]
["POOGOJI ZA POSKUSNO OBRATOVANJE"]
["obdobje poskusnega obratovanja",{"$f":"'VNOS PODATKOV'!D96","v":"00:00:00"}]
["obveznost opravljanja prvih meritev skladno s predpisi:"]
[{"$f":"IF('VNOS PODATKOV'!D98=TRUE,TRUE,FALSE)","v":false},{"$f":"'VNOS PODATKOV'!C98","v":"emisije snovi v zrak"}]
[{"$f":"IF('VNOS PODATKOV'!D99=TRUE,TRUE,FALSE)","v":false},{"$f":"'VNOS PODATKOV'!C99","v":"elektromagnetno sevanje"}]
[{"$f":"IF('VNOS PODATKOV'!D100=TRUE,TRUE,FALSE)","v":false},{"$f":"'VNOS PODATKOV'!C100","v":"odpadne vode"}]
[{"$f":"IF('VNOS PODATKOV'!D101=TRUE,TRUE,FALSE)","v":false},{"$f":"'VNOS PODATKOV'!C101","v":"hrup"}]
[{"$f":"IF('VNOS PODATKOV'!D102=TRUE,TRUE,FALSE)","v":false},{"$f":"'VNOS PODATKOV'!C102","v":0}]
[{"$f":"IF('VNOS PODATKOV'!D103=TRUE,TRUE,FALSE)","v":false},{"$f":"'VNOS PODATKOV'!C103","v":0}]
[]
[{"$f":"'VNOS PODATKOV'!C15","v":"INVESTITOR"}]
[{"$f":"'VNOS PODATKOV'!C16","v":"INVESTITOR 1"}]
[{"$f":"'VNOS PODATKOV'!C17","v":"ime in priimek ali naziv družbe"},{"$f":"'VNOS PODATKOV'!D17","v":0}]
[{"$f":"'VNOS PODATKOV'!C18","v":"naslov ali sedež družbe"},{"$f":"'VNOS PODATKOV'!D18","v":0}]
[{"$f":"'VNOS PODATKOV'!C19","v":"INVESTITOR 2"}]
[{"$f":"'VNOS PODATKOV'!C20","v":"ime in priimek ali naziv družbe"},{"$f":"'VNOS PODATKOV'!D20","v":0}]
[{"$f":"'VNOS PODATKOV'!C21","v":"naslov ali sedež družbe"},{"$f":"'VNOS PODATKOV'!D21","v":0}]
[{"$f":"'VNOS PODATKOV'!C22","v":"INVESTITOR 3"}]
[{"$f":"'VNOS PODATKOV'!C23","v":"ime in priimek ali naziv družbe"},{"$f":"'VNOS PODATKOV'!D23","v":0}]
[{"$f":"'VNOS PODATKOV'!C24","v":"naslov ali sedež družbe"},{"$f":"'VNOS PODATKOV'!D24","v":0}]
[{"$f":"'VNOS PODATKOV'!C34","v":"PODATKI O GRADNJI"}]
[{"$f":"'VNOS PODATKOV'!C37","v":"naziv gradnje"},{"$f":"'VNOS PODATKOV'!D37","v":0}]
[]
[{"$f":"'VNOS PODATKOV'!C78","v":"PODATKI O IZDANEM GRADBENEM DOVOLJENJU"}]
[{"$f":"'VNOS PODATKOV'!C80","v":"navedba organa"},{"$f":"'VNOS PODATKOV'!D80","v":0}]
[{"$f":"'VNOS PODATKOV'!C81","v":"številka dovoljenja"},{"$f":"'VNOS PODATKOV'!D81","v":0}]
[{"$f":"'VNOS PODATKOV'!C82","v":"datum dovoljenja"},{"$f":"IF(ISBLANK('VNOS PODATKOV'!D82),\"\",'VNOS PODATKOV'!D82)","v":""}]
[{"$f":"'VNOS PODATKOV'!C84","v":"pravnomočnost"},{"$f":"IF(ISBLANK('VNOS PODATKOV'!D84),\"\",'VNOS PODATKOV'!D84)","v":""}]
[]
[{"$f":"'VNOS PODATKOV'!C85","v":"PODATKI O SPREMEMBI GRADBENEGA DOVOLJENJA"}]
[{"$f":"'VNOS PODATKOV'!C87","v":"navedba organa"},{"$f":"'VNOS PODATKOV'!D87","v":0}]
[{"$f":"'VNOS PODATKOV'!C88","v":"številka dovoljenja"},{"$f":"'VNOS PODATKOV'!D88","v":0}]
[{"$f":"'VNOS PODATKOV'!C89","v":"datum dovoljenja"},{"$f":"'VNOS PODATKOV'!D89","v":"00:00:00"}]
[{"$f":"'VNOS PODATKOV'!C91","v":"pravnomočnost"},{"$f":"'VNOS PODATKOV'!D91","v":"00:00:00"}]
[]
["PROJEKT IZVEDENIH DEL"]
["se ne izpolni, ko gre za spremembo namembnosti"]
[{"$f":"'VNOS PODATKOV'!C32","v":"številka projekta"},{"$f":"'VNOS PODATKOV'!G32","v":0}]
[{"$f":"'VNOS PODATKOV'!C33","v":"datum izdelave"},{"$f":"'VNOS PODATKOV'!G33","v":"00:00:00"}]
[{"$f":"'VNOS PODATKOV'!C28","v":"projektant (naziv družbe)"},{"$f":"'VNOS PODATKOV'!D28","v":0}]
[]
[{"$f":"'VNOS PODATKOV'!C112","v":"DOKAZILO O ZANESLJIVOSTI OBJEKTA"}]
["se ne izpolni, ko gre za spremembo namembnosti."]
[{"$f":"'VNOS PODATKOV'!C114","v":"številka dokazila o zanesljivosti objekta"},{"$f":"'VNOS PODATKOV'!D114","v":0}]
[{"$f":"'VNOS PODATKOV'!C115","v":"datum izdelave"},{"$f":"'VNOS PODATKOV'!D115","v":"00:00:00"}]
[{"$f":"'VNOS PODATKOV'!C116","v":"izvajalec (naziv družbe)"},{"$f":"'VNOS PODATKOV'!D116","v":0}]
[]
["PODATKI O STAVBAH, GRADBENO INŽENIRSKIH OBJEKTIH IN ZUNANJI UREDITVI"]
["Stavba 1"]
["imenovanje objekta"]
["klasifikacija po CC-SI"]
["številka katastrske občine"]
["katastrska občina"]
["parcelna številka"]
["po potrebi dodati objekte"]

{"sheet":"17C PO PODALJ ODL","index":3,"n_rows":35,"n_cols":2,"rows_kept":35,"cut":false,"hidden":false,"merged":[[1,0,1,1]]}
["PRILOGA 17C"]
["ODLOČBA O PODALJŠANJU \nPOSKUSNEGA OBRATOVANJA"]
[]
["UPRAVNI ORGAN"]
["navedba organa",{"$f":"'VNOS PODATKOV'!D72","v":0}]
["naslov",{"$f":"'VNOS PODATKOV'!D73","v":0}]
["št. odločbe",{"$f":"'VNOS PODATKOV'!D105","v":0}]
["datum",{"$f":"'VNOS PODATKOV'!D106","v":"00:00:00"}]
["postopek vodil (ime in priimek)",{"$f":"'VNOS PODATKOV'!D75","v":0}]
["podpis"]
["odgovorna oseba (ime in priimek)",{"$f":"'VNOS PODATKOV'!D74","v":0}]
["podpis"]
[]
["PREDPIS OZ. PODLAGA ZA ODLOČITEV",{"$f":"'VNOS PODATKOV'!D76","v":0}]
[]
[{"$f":"'VNOS PODATKOV'!C15","v":"INVESTITOR"}]
[{"$f":"'VNOS PODATKOV'!C16","v":"INVESTITOR 1"}]
[{"$f":"'VNOS PODATKOV'!C17","v":"ime in priimek ali naziv družbe"},{"$f":"'VNOS PODATKOV'!D17","v":0}]
[{"$f":"'VNOS PODATKOV'!C18","v":"naslov ali sedež družbe"},{"$f":"'VNOS PODATKOV'!D18","v":0}]
[{"$f":"'VNOS PODATKOV'!C19","v":"INVESTITOR 2"}]
[{"$f":"'VNOS PODATKOV'!C20","v":"ime in priimek ali naziv družbe"},{"$f":"'VNOS PODATKOV'!D20","v":0}]
[{"$f":"'VNOS PODATKOV'!C21","v":"naslov ali sedež družbe"},{"$f":"'VNOS PODATKOV'!D21","v":0}]
[{"$f":"'VNOS PODATKOV'!C22","v":"INVESTITOR 3"}]
[{"$f":"'VNOS PODATKOV'!C23","v":"ime in priimek ali naziv družbe"},{"$f":"'VNOS PODATKOV'!D23","v":0}]
[{"$f":"'VNOS PODATKOV'!C24","v":"naslov ali sedež družbe"},{"$f":"'VNOS PODATKOV'!D24","v":0}]
[]
[{"$f":"'VNOS PODATKOV'!C34","v":"PODATKI O GRADNJI"}]
[{"$f":"'VNOS PODATKOV'!C37","v":"naziv gradnje"},{"$f":"'VNOS PODATKOV'!D37","v":0}]
[]
["PODATKI O ODLOČBI O POSKUSNEM OBRATOVANJU"]
[{"$f":"'VNOS PODATKOV'!C94","v":"številka odločbe"},{"$f":"'VNOS PODATKOV'!D94","v":0}]
[{"$f":"'VNOS PODATKOV'!C95","v":"datum odločbe"},{"$f":"'VNOS PODATKOV'!D95","v":"00:00:00"}]
[]
["ČAS PODALJŠANJA POSKUSNEGA OBRATOVANJA"]
["datum podaljšanja poskusnega obratovanja",{"$f":"'VNOS PODATKOV'!D107","v":"00:00:00"}]

{"sheet":"18 UD ODL","index":4,"n_rows":94,"n_cols":4,"rows_kept":94,"cut":false,"hidden":false,"merged":[[48,0,48,3],[75,1,75,3]]}
["PRILOGA 18"]
["UPORABNO DOVOLJENJE"]
[]
["UPRAVNI ORGAN"]
["navedba organa",{"$f":"'VNOS PODATKOV'!D72","v":0}]
["naslov",{"$f":"'VNOS PODATKOV'!D73","v":0}]
["št. odločbe",{"$f":"'VNOS PODATKOV'!D110","v":0}]
["datum",{"$f":"'VNOS PODATKOV'!D111","v":"00:00:00"}]
["postopek vodil (ime in priimek)",{"$f":"'VNOS PODATKOV'!D75","v":0}]
["podpis"]
["odgovorna oseba (ime in priimek)",{"$f":"'VNOS PODATKOV'!D74","v":0}]
["podpis"]
[]
["PREDPIS OZ. PODLAGA ZA ODLOČITEV",{"$f":"'VNOS PODATKOV'!D76","v":0},{"$f":"'VNOS PODATKOV'!E76","v":0},{"$f":"'VNOS PODATKOV'!F76","v":0}]
[]
[{"$f":"'VNOS PODATKOV'!C15","v":"INVESTITOR"}]
[{"$f":"'VNOS PODATKOV'!C16","v":"INVESTITOR 1"}]
[{"$f":"'VNOS PODATKOV'!C17","v":"ime in priimek ali naziv družbe"},{"$f":"'VNOS PODATKOV'!D17","v":0}]
[{"$f":"'VNOS PODATKOV'!C18","v":"naslov ali sedež družbe"},{"$f":"'VNOS PODATKOV'!D18","v":0}]
[{"$f":"'VNOS PODATKOV'!C19","v":"INVESTITOR 2"}]
[{"$f":"'VNOS PODATKOV'!C20","v":"ime in priimek ali naziv družbe"},{"$f":"'VNOS PODATKOV'!D20","v":0}]
[{"$f":"'VNOS PODATKOV'!C21","v":"naslov ali sedež družbe"},{"$f":"'VNOS PODATKOV'!D21","v":0}]
[{"$f":"'VNOS PODATKOV'!C22","v":"INVESTITOR 3"}]
[{"$f":"'VNOS PODATKOV'!C23","v":"ime in priimek ali naziv družbe"},{"$f":"'VNOS PODATKOV'!D23","v":0}]
[{"$f":"'VNOS PODATKOV'!C24","v":"naslov ali sedež družbe"},{"$f":"'VNOS PODATKOV'!D24","v":0}]
[]
[{"$f":"'VNOS PODATKOV'!C34","v":"PODATKI O GRADNJI"}]
[{"$f":"'VNOS PODATKOV'!C37","v":"naziv gradnje"},{"$f":"'VNOS PODATKOV'!D37","v":0}]
[{"$f":"IF('VNOS PODATKOV'!D68=TRUE,TRUE,FALSE)","v":false},{"$f":"'VNOS PODATKOV'!C68","v":"enostanovanjska stavba ima izveden oziroma dokončan ovoj"}]
[]
[{"$f":"'VNOS PODATKOV'!C78","v":"PODATKI O IZDANEM GRADBENEM DOVOLJENJU"}]
[{"$f":"'VNOS PODATKOV'!C80","v":"navedba organa"},{"$f":"'VNOS PODATKOV'!D80","v":0}]
[{"$f":"'VNOS PODATKOV'!C81","v":"številka dovoljenja"},{"$f":"'VNOS PODATKOV'!D81","v":0}]
[{"$f":"'VNOS PODATKOV'!C82","v":"datum dovoljenja"},{"$f":"IF(ISBLANK('VNOS PODATKOV'!D82),\"\",'VNOS PODATKOV'!D82)","v":""}]
[{"$f":"'VNOS PODATKOV'!C84","v":"pravnomočnost"},{"$f":"IF(ISBLANK('VNOS PODATKOV'!D84),\"\",'VNOS PODATKOV'!D84)","v":""}]
[]
[{"$f":"'VNOS PODATKOV'!C85","v":"PODATKI O SPREMEMBI GRADBENEGA DOVOLJENJA"}]
[{"$f":"'VNOS PODATKOV'!C87","v":"navedba organa"},{"$f":"'VNOS PODATKOV'!D87","v":0}]
[{"$f":"'VNOS PODATKOV'!C88","v":"številka dovoljenja"},{"$f":"'VNOS PODATKOV'!D88","v":0}]
[{"$f":"'VNOS PODATKOV'!C89","v":"datum dovoljenja"},{"$f":"'VNOS PODATKOV'!D89","v":"00:00:00"}]
[{"$f":"'VNOS PODATKOV'!C91","v":"pravnomočnost"},{"$f":"'VNOS PODATKOV'!D91","v":"00:00:00"}]
["PROJEKT IZVEDENIH DEL"]
["se ne izpolni, ko gre za spremembo namembnostI"]
[{"$f":"'VNOS PODATKOV'!C32","v":"številka projekta"},{"$f":"'VNOS PODATKOV'!G32","v":0}]
[{"$f":"'VNOS PODATKOV'!C33","v":"datum izdelave"},{"$f":"'VNOS PODATKOV'!G33","v":"00:00:00"}]
[{"$f":"'VNOS PODATKOV'!C28","v":"projektant (naziv družbe)"},{"$f":"'VNOS PODATKOV'!D28","v":0}]
[]
[{"$f":"'VNOS PODATKOV'!C112","v":"DOKAZILO O ZANESLJIVOSTI OBJEKTA"}]
["se ne izpolni, ko gre za spremembo namembnosti ali če je priložena izjava projektanta, nadzornika ali izvajalca, ki v posebnih okoliščinah nadomešča DZO"]
[{"$f":"'VNOS PODATKOV'!C114","v":"številka dokazila o zanesljivosti objekta"},{"$f":"'VNOS PODATKOV'!D114","v":0}]
[{"$f":"'VNOS PODATKOV'!C115","v":"datum izdelave"},{"$f":"'VNOS PODATKOV'!D116","v":"00:00:00"}]
[{"$f":"'VNOS PODATKOV'!C116","v":"izvajalec (naziv družbe)"},{"$f":"'VNOS PODATKOV'!D115","v":0}]
[]
["GRADBENA PARCELA"]
["izpolni se, kadar se v skladu s predpisi o urejanju prostora gradbena parcela določi v postopku izdaje uporabnega dovoljenja za celotno gradnjo"]
["velikost gradbene parcele m2",{"$f":"+D61+D66+D71","v":0}]
["GRADBENA PARCELA - ENA ALI VEČ PARCEL"]
["katastrska občina","parc. št.","parcela m2","območje gradbene parcele m2"]
[]
[]
["po potrebi dodati vrstice za vsako parcelo in preveriti seštevek",null,null,{"$f":"SUM(D59:D60)","v":0}]
["GRADBENA PARCELA - OBMOČJA STVARNE SLUŽNOSTI"]
["katastrska občina","parc. št.","parcela m2","območje gradbene parcele m2"]
[]
[]
["po potrebi dodati vrstice za vsako parcelo in preveriti seštevek",null,null,{"$f":"SUM(D64:D65)","v":0}]
["GRADBENA PARCELA - OBMOČJA STAVBNIH PRAVIC"]
["katastrska občina","parc. št.","parcela m2","območje gradbene parcele m2"]
[]
[]
["po potrebi dodati vrstice za vsako parcelo in preveriti seštevek",null,null,{"$f":"SUM(D69:D70)","v":0}]
[]
["PODATKI O STAVBAH, GRADBENO INŽENIRSKIH OBJEKTIH IN ZUNANJI UREDITVI"]
["Stavba 1"]
["imenovanje objekta"]
["klasifikacija po CC-SI"]
["velikost gradbene parcele m2",{"$f":"+D82+D87+D92","v":0}]
["GRADBENA PARCELA - ENA ALI VEČ PARCEL"]
["k. o. ","parc. št.","parcela m2","območje gradbene parcele m2"]
[]
[]
["po potrebi dodati vrstice in preveriti seštevek",null,null,{"$f":"SUM(D80:D81)","v":0}]
["GRADBENA PARCELA - OBMOČJA STVARNE SLUŽNOSTI"]
["k. o. ","parc. št.","parcela m2","območje gradbene parcele m2"]
[]
[]
["po potrebi dodati vrstice in preveriti seštevek",null,null,{"$f":"SUM(D85:D86)","v":0}]
["GRADBENA PARCELA - OBMOČJA STAVBNIH PRAVIC"]
["k. o. ","parc. št.","parcela m2","območje gradbene parcele m2"]
[]
[]
["po potrebi dodati vrstice in preveriti seštevek",null,null,{"$f":"SUM(D90:D91)","v":0}]
[]
["po potrebi dodati objekte"]

{"sheet":"19J LEG ODL","index":5,"n_rows":48,"n_cols":2,"rows_kept":48,"cut":false,"hidden":false,"merged":[[48,0,48,1],[1,0,1,1],[44,0,45,1]]}
["PRILOGA 19J"]
["ODLOČBA O LEGALIZACIJI"]
[]
["UPRAVNI ORGAN"]
["navedba organa",{"$f":"'VNOS PODATKOV'!D72","v":0}]
["naslov",{"$f":"'VNOS PODATKOV'!D73","v":0}]
["št. odločbe",{"$f":"'VNOS PODATKOV'!D110","v":0}]
["datum",{"$f":"'VNOS PODATKOV'!D111","v":"00:00:00"}]
["postopek vodil (ime in priimek)",{"$f":"'VNOS PODATKOV'!D75","v":0}]
["podpis"]
["odgovorna oseba (ime in priimek)",{"$f":"'VNOS PODATKOV'!D74","v":0}]
["podpis"]
[]
["PREDPIS OZ. PODLAGA ZA ODLOČITEV",{"$f":"'VNOS PODATKOV'!D76","v":0}]
[]
[{"$f":"'VNOS PODATKOV'!C15","v":"INVESTITOR"}]
[{"$f":"'VNOS PODATKOV'!C16","v":"INVESTITOR 1"}]
[{"$f":"'VNOS PODATKOV'!C17","v":"ime in priimek ali naziv družbe"},{"$f":"'VNOS PODATKOV'!D17","v":0}]
[{"$f":"'VNOS PODATKOV'!C18","v":"naslov ali sedež družbe"},{"$f":"'VNOS PODATKOV'!D18","v":0}]
[{"$f":"'VNOS PODATKOV'!C19","v":"INVESTITOR 2"}]
[{"$f":"'VNOS PODATKOV'!C20","v":"ime in priimek ali naziv družbe"},{"$f":"'VNOS PODATKOV'!D20","v":0}]
[{"$f":"'VNOS PODATKOV'!C21","v":"naslov ali sedež družbe"},{"$f":"'VNOS PODATKOV'!D21","v":0}]
[{"$f":"'VNOS PODATKOV'!C22","v":"INVESTITOR 3"}]
[{"$f":"'VNOS PODATKOV'!C23","v":"ime in priimek ali naziv družbe"},{"$f":"'VNOS PODATKOV'!D23","v":0}]
[{"$f":"'VNOS PODATKOV'!C24","v":"naslov ali sedež družbe"},{"$f":"'VNOS PODATKOV'!D24","v":0}]
[]
["PODATKI O OBJEKTU"]
[{"$f":"'VNOS PODATKOV'!C42","v":"naziv objekta ali dela objekta"},{"$f":"'VNOS PODATKOV'!D42","v":0}]
[{"$f":"'VNOS PODATKOV'!C44","v":"naslov stavbe, če je določen"},{"$f":"'VNOS PODATKOV'!D44","v":0}]
[{"$f":"'VNOS PODATKOV'!C45","v":"vrsta objekta"},{"$f":"'VNOS PODATKOV'!D45","v":0}]
[{"$f":"'VNOS PODATKOV'!C46","v":"zahtevnost objekta"},{"$f":"'VNOS PODATKOV'!D46","v":0}]
["klasifikacija po CC-SI ",{"$f":"IF(B30=\"STAVBA\",'VNOS PODATKOV'!D53,'VNOS PODATKOV'!D54)","v":0}]
[{"$f":"'VNOS PODATKOV'!C56","v":"številka stavbe"},{"$f":"'VNOS PODATKOV'!D56","v":0}]
[{"$f":"'VNOS PODATKOV'!C57","v":"številka posameznega dela stavbe"},{"$f":"'VNOS PODATKOV'!D57","v":0}]
[]
["ZEMLJIŠČA, NA KATERIH SE NAHAJA OBJEKT"]
["številka katastrske občine",{"$f":"'VNOS PODATKOV'!D49","v":0}]
["katastrska občina",{"$f":"'VNOS PODATKOV'!D50","v":0}]
["parc. št.",{"$f":"'VNOS PODATKOV'!D51","v":0}]
["po potrebi dodati vrstice",0]
[]
[]
[]
["OBRAZLOŽITEV"]
[]
[]
[]
["PRAVNI POUK"]

{"sheet":"19K ODO BREZ GD ODL","index":6,"n_rows":48,"n_cols":2,"rows_kept":48,"cut":false,"hidden":false,"merged":[[1,0,1,1],[48,0,48,1],[44,0,45,1]]}
["PRILOGA 19K"]
["DOVOLJENJE ZA OBJEKT \nDALJŠEGA OBSTOJA \nBREZ GRADBENEGA DOVOLJENJA"]
[]
["UPRAVNI ORGAN"]
["navedba organa",{"$f":"'VNOS PODATKOV'!D72","v":0}]
["naslov",{"$f":"'VNOS PODATKOV'!D73","v":0}]
["št. odločbe",{"$f":"'VNOS PODATKOV'!D110","v":0}]
["datum",{"$f":"'VNOS PODATKOV'!D111","v":"00:00:00"}]
["postopek vodil (ime in priimek)",{"$f":"'VNOS PODATKOV'!D75","v":0}]
["podpis"]
["odgovorna oseba (ime in priimek)",{"$f":"'VNOS PODATKOV'!D74","v":0}]
["podpis"]
[]
["PREDPIS OZ. PODLAGA ZA ODLOČITEV",{"$f":"'VNOS PODATKOV'!D76","v":0}]
[]
[{"$f":"'VNOS PODATKOV'!C15","v":"INVESTITOR"}]
[{"$f":"'VNOS PODATKOV'!C16","v":"INVESTITOR 1"}]
[{"$f":"'VNOS PODATKOV'!C17","v":"ime in priimek ali naziv družbe"},{"$f":"'VNOS PODATKOV'!D17","v":0}]
[{"$f":"'VNOS PODATKOV'!C18","v":"naslov ali sedež družbe"},{"$f":"'VNOS PODATKOV'!D18","v":0}]
[{"$f":"'VNOS PODATKOV'!C19","v":"INVESTITOR 2"}]
[{"$f":"'VNOS PODATKOV'!C20","v":"ime in priimek ali naziv družbe"},{"$f":"'VNOS PODATKOV'!D20","v":0}]
[{"$f":"'VNOS PODATKOV'!C21","v":"naslov ali sedež družbe"},{"$f":"'VNOS PODATKOV'!D21","v":0}]
[{"$f":"'VNOS PODATKOV'!C22","v":"INVESTITOR 3"}]
[{"$f":"'VNOS PODATKOV'!C23","v":"ime in priimek ali naziv družbe"},{"$f":"'VNOS PODATKOV'!D23","v":0}]
[{"$f":"'VNOS PODATKOV'!C24","v":"naslov ali sedež družbe"},{"$f":"'VNOS PODATKOV'!D24","v":0}]
[]
["PODATKI O OBJEKTU"]
[{"$f":"'VNOS PODATKOV'!C42","v":"naziv objekta ali dela objekta"},{"$f":"'VNOS PODATKOV'!D42","v":0}]
[{"$f":"'VNOS PODATKOV'!C44","v":"naslov stavbe, če je določen"},{"$f":"'VNOS PODATKOV'!D44","v":0}]
[{"$f":"'VNOS PODATKOV'!C45","v":"vrsta objekta"},{"$f":"'VNOS PODATKOV'!D45","v":0}]
[{"$f":"'VNOS PODATKOV'!C46","v":"zahtevnost objekta"},{"$f":"'VNOS PODATKOV'!D46","v":0}]
["klasifikacija po CC-SI ",{"$f":"IF(B30=\"STAVBA\",'VNOS PODATKOV'!D53,'VNOS PODATKOV'!D54)","v":0}]
[{"$f":"'VNOS PODATKOV'!C56","v":"številka stavbe"},{"$f":"'VNOS PODATKOV'!D56","v":0}]
[{"$f":"'VNOS PODATKOV'!C57","v":"številka posameznega dela stavbe"},{"$f":"'VNOS PODATKOV'!D57","v":0}]
[]
["ZEMLJIŠČA, NA KATERIH SE NAHAJA OBJEKT"]
["številka katastrske občine",{"$f":"'VNOS PODATKOV'!D49","v":0}]
["katastrska občina",{"$f":"'VNOS PODATKOV'!D50","v":0}]
["parc. št.",{"$f":"'VNOS PODATKOV'!D51","v":0}]
["po potrebi dodati vrstice",0]
[]
[]
[]
["OBRAZLOŽITEV"]
[]
[]
[]
["PRAVNI POUK"]

{"sheet":"19L ODO Z GD ODL","index":7,"n_rows":47,"n_cols":2,"rows_kept":47,"cut":false,"hidden":false,"merged":[[1,0,1,1]]}
["PRILOGA 19L"]
["DOVOLJENJE ZA OBJEKT \nDALJŠEGA OBSTOJA \nZ GRADBENIM DOVOLJENJEM"]
[]
["UPRAVNI ORGAN"]
["navedba organa",{"$f":"'VNOS PODATKOV'!D72","v":0}]
["naslov",{"$f":"'VNOS PODATKOV'!D73","v":0}]
["št. odločbe",{"$f":"'VNOS PODATKOV'!D110","v":0}]
["datum",{"$f":"'VNOS PODATKOV'!D111","v":"00:00:00"}]
["postopek vodil (ime in priimek)",{"$f":"'VNOS PODATKOV'!D75","v":0}]
["podpis"]
["odgovorna oseba (ime in priimek)",{"$f":"'VNOS PODATKOV'!D74","v":0}]
["podpis"]
[]
["PREDPIS OZ. PODLAGA ZA ODLOČITEV",{"$f":"'VNOS PODATKOV'!D76","v":0}]
[]
[{"$f":"'VNOS PODATKOV'!C15","v":"INVESTITOR"}]
[{"$f":"'VNOS PODATKOV'!C16","v":"INVESTITOR 1"}]
[{"$f":"'VNOS PODATKOV'!C17","v":"ime in priimek ali naziv družbe"},{"$f":"'VNOS PODATKOV'!D17","v":0}]
[{"$f":"'VNOS PODATKOV'!C18","v":"naslov ali sedež družbe"},{"$f":"'VNOS PODATKOV'!D18","v":0}]
[{"$f":"'VNOS PODATKOV'!C19","v":"INVESTITOR 2"}]
[{"$f":"'VNOS PODATKOV'!C20","v":"ime in priimek ali naziv družbe"},{"$f":"'VNOS PODATKOV'!D20","v":0}]
[{"$f":"'VNOS PODATKOV'!C21","v":"naslov ali sedež družbe"},{"$f":"'VNOS PODATKOV'!D21","v":0}]
[{"$f":"'VNOS PODATKOV'!C22","v":"INVESTITOR 3"}]
[{"$f":"'VNOS PODATKOV'!C23","v":"ime in priimek ali naziv družbe"},{"$f":"'VNOS PODATKOV'!D23","v":0}]
[{"$f":"'VNOS PODATKOV'!C24","v":"naslov ali sedež družbe"},{"$f":"'VNOS PODATKOV'!D24","v":0}]
[]
["PODATKI O OBJEKTU"]
[{"$f":"'VNOS PODATKOV'!C42","v":"naziv objekta ali dela objekta"},{"$f":"'VNOS PODATKOV'!D42","v":0}]
[{"$f":"'VNOS PODATKOV'!C43","v":"kratek opis"},{"$f":"'VNOS PODATKOV'!D43","v":0}]
[]
[{"$f":"'VNOS PODATKOV'!C78","v":"PODATKI O IZDANEM GRADBENEM DOVOLJENJU"}]
[{"$f":"'VNOS PODATKOV'!C80","v":"navedba organa"},{"$f":"'VNOS PODATKOV'!D80","v":0}]
[{"$f":"'VNOS PODATKOV'!C81","v":"številka dovoljenja"},{"$f":"'VNOS PODATKOV'!D81","v":0}]
[{"$f":"'VNOS PODATKOV'!C82","v":"datum dovoljenja"},{"$f":"IF(ISBLANK('VNOS PODATKOV'!D82),\"\",'VNOS PODATKOV'!D82)","v":""}]
[{"$f":"'VNOS PODATKOV'!C84","v":"pravnomočnost"},{"$f":"IF(ISBLANK('VNOS PODATKOV'!D84),\"\",'VNOS PODATKOV'!D84)","v":""}]
[]
[{"$f":"'VNOS PODATKOV'!C85","v":"PODATKI O SPREMEMBI GRADBENEGA DOVOLJENJA"}]
[{"$f":"'VNOS PODATKOV'!C87","v":"navedba organa"},{"$f":"'VNOS PODATKOV'!D87","v":0}]
[{"$f":"'VNOS PODATKOV'!C88","v":"številka dovoljenja"},{"$f":"'VNOS PODATKOV'!D88","v":0}]
[{"$f":"'VNOS PODATKOV'!C89","v":"datum dovoljenja"},{"$f":"'VNOS PODATKOV'!D89","v":"00:00:00"}]
[{"$f":"'VNOS PODATKOV'!C91","v":"pravnomočnost"},{"$f":"'VNOS PODATKOV'!D91","v":"00:00:00"}]
[]
["ZEMLJIŠČA, NA KATERIH SE NAHAJA OBJEKT"]
["številka katastrske občine",{"$f":"'VNOS PODATKOV'!D49","v":0}]
["katastrska občina",{"$f":"'VNOS PODATKOV'!D50","v":0}]
["parc. št.",{"$f":"'VNOS PODATKOV'!D51","v":0}]
["po potrebi dodati vrstice",0]

{"sheet":"19M UD OBST ENOST ODL","index":8,"n_rows":45,"n_cols":2,"rows_kept":45,"cut":false,"hidden":false,"merged":[[1,0,1,1]]}
["PRILOGA 19M"]
["UPORABNO DOVOLJENJE \nZA OBSTOJEČO \nENOSTANOVANJSKO STAVBO"]
[]
["UPRAVNI ORGAN"]
["navedba organa",{"$f":"'VNOS PODATKOV'!D72","v":0}]
["naslov",{"$f":"'VNOS PODATKOV'!D73","v":0}]
["št. odločbe",{"$f":"'VNOS PODATKOV'!D110","v":0}]
["datum",{"$f":"'VNOS PODATKOV'!D111","v":"00:00:00"}]
["postopek vodil (ime in priimek)",{"$f":"'VNOS PODATKOV'!D75","v":0}]
["podpis"]
["odgovorna oseba (ime in priimek)",{"$f":"'VNOS PODATKOV'!D74","v":0}]
["podpis"]
[]
["PREDPIS OZ. PODLAGA ZA ODLOČITEV",{"$f":"'VNOS PODATKOV'!D76","v":0}]
[]
[{"$f":"'VNOS PODATKOV'!C15","v":"INVESTITOR"}]
[{"$f":"'VNOS PODATKOV'!C16","v":"INVESTITOR 1"}]
[{"$f":"'VNOS PODATKOV'!C17","v":"ime in priimek ali naziv družbe"},{"$f":"'VNOS PODATKOV'!D17","v":0}]
[{"$f":"'VNOS PODATKOV'!C18","v":"naslov ali sedež družbe"},{"$f":"'VNOS PODATKOV'!D18","v":0}]
[{"$f":"'VNOS PODATKOV'!C19","v":"INVESTITOR 2"}]
[{"$f":"'VNOS PODATKOV'!C20","v":"ime in priimek ali naziv družbe"},{"$f":"'VNOS PODATKOV'!D20","v":0}]
[{"$f":"'VNOS PODATKOV'!C21","v":"naslov ali sedež družbe"},{"$f":"'VNOS PODATKOV'!D21","v":0}]
[{"$f":"'VNOS PODATKOV'!C22","v":"INVESTITOR 3"}]
[{"$f":"'VNOS PODATKOV'!C23","v":"ime in priimek ali naziv družbe"},{"$f":"'VNOS PODATKOV'!D23","v":0}]
[{"$f":"'VNOS PODATKOV'!C24","v":"naslov ali sedež družbe"},{"$f":"'VNOS PODATKOV'!D24","v":0}]
[]
["PODATKI O GRADNJI"]
["naziv gradnje",{"$f":"'VNOS PODATKOV'!D42","v":0}]
[]
[{"$f":"'VNOS PODATKOV'!C78","v":"PODATKI O IZDANEM GRADBENEM DOVOLJENJU"}]
[{"$f":"'VNOS PODATKOV'!C80","v":"navedba organa"},{"$f":"'VNOS PODATKOV'!D80","v":0}]
[{"$f":"'VNOS PODATKOV'!C81","v":"številka dovoljenja"},{"$f":"'VNOS PODATKOV'!D81","v":0}]
[{"$f":"'VNOS PODATKOV'!C82","v":"datum dovoljenja"},{"$f":"IF(ISBLANK('VNOS PODATKOV'!D82),\"\",'VNOS PODATKOV'!D82)","v":""}]
[{"$f":"'VNOS PODATKOV'!C84","v":"pravnomočnost"},{"$f":"IF(ISBLANK('VNOS PODATKOV'!D84),\"\",'VNOS PODATKOV'!D84)","v":""}]
[]
[{"$f":"'VNOS PODATKOV'!C85","v":"PODATKI O SPREMEMBI GRADBENEGA DOVOLJENJA"}]
[{"$f":"'VNOS PODATKOV'!C87","v":"navedba organa"},{"$f":"'VNOS PODATKOV'!D87","v":0}]
[{"$f":"'VNOS PODATKOV'!C88","v":"številka dovoljenja"},{"$f":"'VNOS PODATKOV'!D88","v":0}]
[{"$f":"'VNOS PODATKOV'!C89","v":"datum dovoljenja"},{"$f":"'VNOS PODATKOV'!D89","v":"00:00:00"}]
[{"$f":"'VNOS PODATKOV'!C91","v":"pravnomočnost"},{"$f":"'VNOS PODATKOV'!D91","v":"00:00:00"}]
["ZEMLJIŠČA, NA KATERIH SE NAHAJA OBJEKT"]
["številka katastrske občine",{"$f":"'VNOS PODATKOV'!D49","v":0}]
["katastrska občina",{"$f":"'VNOS PODATKOV'!D50","v":0}]
["parc. št.",{"$f":"'VNOS PODATKOV'!D51","v":0}]
["po potrebi dodati vrstice",0]

{"sheet":"19N GD IN UD ODL","index":9,"n_rows":44,"n_cols":2,"rows_kept":44,"cut":false,"hidden":false,"merged":[[1,0,1,1]]}
["PRILOGA 19N"]
["ODLOČBA O PRIDOBLJENEM \nGRADBENEM IN UPORABNEM DOVOLJENJU"]
[]
["UPRAVNI ORGAN"]
["navedba organa",{"$f":"'VNOS PODATKOV'!D72","v":0}]
["naslov",{"$f":"'VNOS PODATKOV'!D73","v":0}]
["št. odločbe",{"$f":"'VNOS PODATKOV'!D110","v":0}]
["datum",{"$f":"'VNOS PODATKOV'!D111","v":"00:00:00"}]
["postopek vodil (ime in priimek)",{"$f":"'VNOS PODATKOV'!D75","v":0}]
["podpis"]
["odgovorna oseba (ime in priimek)",{"$f":"'VNOS PODATKOV'!D74","v":0}]
["podpis"]
[]
["PREDPIS OZ. PODLAGA ZA ODLOČITEV",{"$f":"'VNOS PODATKOV'!D76","v":0}]
[]
[{"$f":"'VNOS PODATKOV'!C15","v":"INVESTITOR"}]
[{"$f":"'VNOS PODATKOV'!C16","v":"INVESTITOR 1"}]
[{"$f":"'VNOS PODATKOV'!C17","v":"ime in priimek ali naziv družbe"},{"$f":"'VNOS PODATKOV'!D17","v":0}]
[{"$f":"'VNOS PODATKOV'!C18","v":"naslov ali sedež družbe"},{"$f":"'VNOS PODATKOV'!D18","v":0}]
[{"$f":"'VNOS PODATKOV'!C19","v":"INVESTITOR 2"}]
[{"$f":"'VNOS PODATKOV'!C20","v":"ime in priimek ali naziv družbe"},{"$f":"'VNOS PODATKOV'!D20","v":0}]
[{"$f":"'VNOS PODATKOV'!C21","v":"naslov ali sedež družbe"},{"$f":"'VNOS PODATKOV'!D21","v":0}]
[{"$f":"'VNOS PODATKOV'!C22","v":"INVESTITOR 3"}]
[{"$f":"'VNOS PODATKOV'!C23","v":"ime in priimek ali naziv družbe"},{"$f":"'VNOS PODATKOV'!D23","v":0}]
[{"$f":"'VNOS PODATKOV'!C24","v":"naslov ali sedež družbe"},{"$f":"'VNOS PODATKOV'!D24","v":0}]
[]
["PODATKI O OBJEKTU"]
["naziv objekta",{"$f":"'VNOS PODATKOV'!D42","v":0}]
[{"$f":"'VNOS PODATKOV'!C43","v":"kratek opis"},{"$f":"'VNOS PODATKOV'!D43","v":0}]
["PREDMET ODLOČBE"]
[{"$f":"'VNOS PODATKOV'!C59","v":"ODLOČBA O PRIDOBLJENEM GRADBENEM IN UPORABNEM DOVOLJENJU SE NANAŠA NA:"}]
[{"$f":"IF('VNOS PODATKOV'!D60=TRUE,TRUE,FALSE)","v":false},{"$f":"'VNOS PODATKOV'!C60","v":"enostanovanjsko stavbo, zgrajeno na podlagi gradbenega dovoljenja in v uporabi na dan 1. 1. 2003"}]
[{"$f":"IF('VNOS PODATKOV'!D61=TRUE,TRUE,FALSE)","v":false},{"$f":"'VNOS PODATKOV'!C61","v":"stavbo, zgrajeno pred 31. decembrom 1967"}]
[{"$f":"IF('VNOS PODATKOV'!D62=TRUE,TRUE,FALSE)","v":false},{"$f":"'VNOS PODATKOV'!C62","v":"posamezno stanovanje ali poslovni prostor v etažni lastnini, ki je bilo rekonstruirano na podlagi gradbenega dovoljenja"}]
[{"$f":"IF('VNOS PODATKOV'!D63=TRUE,TRUE,FALSE)","v":false},{"$f":"'VNOS PODATKOV'!C63","v":"objekt gospodarske javne infrastrukture, zgrajen pred 25. junijem 1991"}]
[{"$f":"IF('VNOS PODATKOV'!D64=TRUE,TRUE,FALSE)","v":false},{"$f":"'VNOS PODATKOV'!C64","v":"gradbeno inženirski objekt, zgrajeni pred 31. decembrom 1967"}]
[{"$f":"IF('VNOS PODATKOV'!D65=TRUE,TRUE,FALSE)","v":false},{"$f":"'VNOS PODATKOV'!C65","v":"objekt s področja obrambe, objekt s področja zaščite in reševanja ali objekt s področja notranjih zadev, ki se mu namembnost po 25. juniju 1991 ni spremenila"}]
[{"$f":"IF('VNOS PODATKOV'!D66=TRUE,TRUE,FALSE)","v":false},{"$f":"'VNOS PODATKOV'!C66","v":"objekt, ki se je pred 9. novembrom 1996 lahko zgradil na podlagi priglasitve del po 46. členu Zakona o graditvi objektov (Uradni list SRS, št. 34/84)"}]
[]
["ZEMLJIŠČA, NA KATERIH SE NAHAJA OBJEKT"]
["številka katastrske občine",{"$f":"'VNOS PODATKOV'!D49","v":0}]
["katastrska občina",{"$f":"'VNOS PODATKOV'!D50","v":0}]
["parc. št.",{"$f":"'VNOS PODATKOV'!D51","v":0}]
["po potrebi dodati vrstice",0]

{"sheet":"BAZA PODATKOV","index":10,"n_rows":364,"n_cols":3,"rows_kept":364,"cut":false,"hidden":false,"merged":[]}
["VRSTE PROJEKTNE DOKUMENTACIJE"]
[]
["DPP (idejna zasnova za pridobitev projektnih pogojev)",1]
["DGD (projektna dokumentacija za pridobivanje mnenj in gradbenega dovoljenja)",2]
["PZI (projektna dokumentacija za izvedbo gradnje)",3]
["PZI v delu, ki se nanaša na pripravljalna dela",4]
["PID (projektna dokumentacija izvedenih del)",5]
["DL (dokumentacija za legalizacijo)",6]
["DNZO (dokumentacija za pridobitev gradbenega dovoljenja za nezahtevne objekte)",7]
["DSN (dokumentacija za pridobitev gradbenega dovoljenja za spremembo namembnosti)",8]
["DOZ (dokazilo o zanesljivosti)",9]
[]
["FAZA PROJEKTA"]
[]
["DPP",1]
["DGD",2]
["PZI",3]
["PID",4]
[]
["VRSTE NAČRTOV"]
[]
["0/1 Vodilni načrt - načrt arhitekture"]
["0/2 Vodilni načrt - načrt gradbeništva"]
["0/3 Vodilni načrt - načrt elektrotehnike"]
["0/4 Vodilni načrt - načrt strojništva"]
["0/5 Vodilni načrt - načrt tehnologije"]
["0/6 Vodilni načrt - načrt požarne varnosti"]
["0/7 Vodilni načrt - načrt geotehnologije in rudarstva"]
["0/8 Vodilni načrt - načrt geodezije"]
["0/9 Vodilni načrt - načrt prometnega inženirstva"]
["0/10 Vodilni načrt - načrt krajinske arhitekture"]
["0 Vodilna mapa"]
["1 Načrt s področja arhitekture",1]
["2 Načrt s področja gradbeništva",2]
["3 Načrt s področja elektrotehnike",3]
["4 Načrt s področja strojništva",4]
["5 Načrt s področja tehnologije",5]
["6 Načrt s področja požarne varnosti",6]
["7 Načrt s področja geotehnologije in rudarstva",7]
["8 Načrt s področja geodezije",8]
["9 Načrt s področja prometnega inženirstva",9]
["10 Načrt s področja krajinske arhitekture",10]
[]
["IZKAZI"]
[]
["izkaz energijskih karakteristik prezračevanja stavbe"]
["izkaz toplotnih karakteristik stavbe"]
["izkaz požarne varnosti"]
["izkaz zaščite pred hrupom"]
[]
["ZAGOTAVLJANJE MINIMALNE KOMUNALNE OSKRBE"]
[]
["priključevanje ni predvideno"]
["nov priključek"]
["obstoječ priključek"]
["lastni vir"]
[]
["ODVAJANJE FEKALNIH VODA"]
[]
["nov priključek"]
["obstoječ priključek"]
["pretočna greznica"]
["čistilna naprava"]
[]
["ODVAJANJE METEORNIH VODA"]
[]
["nov priključek"]
["obstoječ priključek"]
["odvajanje v vodotok"]
["razpršeno odvajanje"]
["ponikovalnica"]
[]
["DRUGA OSKRBA Z ENERGIJO"]
[]
["lastni vir"]
[]
["lokacija priključitve"]
[]
["/"]
["obstoječa merilna omarica"]
["nova merilna omarica"]
[]
["/"]
["obstoječ vodomerni jašek"]
["nov vodomerni jašek"]
[]
["PROSTORSKI AKTI"]
[]
["OPN"]
["DLN"]
["PUP"]
["ZN"]
[]
["VRSTE GRADNJE"]
[]
["novogradnja - novozgrajen objekt"]
["novogradnja - prizidava"]
["rekonstrukcija"]
["odstranitev"]
["sprememba namembnosti"]
[]
["ZAHTEVNOST OBJEKTOV"]
[]
["zahteven"]
["manj zahteven"]
["nezahteven"]
["enostaven"]
[]
["POŽARNA ZAHTEVNOST OBJEKTOV"]
[]
["požarno zahteven objekt"]
["požarno manj zahteven objekt"]
[]
["DA/NE"]
[]
["DA"]
["NE"]
[]
["VRSTA OBJEKTA"]
[]
["stavba"]
["gradbeni inženirski objekt"]
[]
[]
["GLAVNI ALI PRIPADAJOČI"]
[]
["GLAVNI OBJEKT"]
["PRIPADAJOČI OBJEKT"]
[]
[]
["CC-SI STAVBE"]
[]
["11100 Enostanovanjske stavbe"]
["11210 Dvostanovanjske stavbe"]
["11220 Tri- in večstanovanjske stavbe"]
["11301 Stanovanjske stavbe z oskrbovanimi stanovanji"]
["11302 Stanovanjske stavbe za druge posebne družbene skupine"]
["12111 Hotelske in podobne stavbe za kratkotrajno nastanitev"]
["12112 Gostilne, restavracije in točilnice"]
["12121 Druge gostinske stavbe za kratkotrajno nastanitev"]
["12122 Stavbe za kratkotrajno nastanitev na drevesu"]
["12201 Stavbe javne uprave"]
["12202 Stavbe bank, pošt, zavarovalnic"]
["12203 Druge poslovne stavbe"]
["12204 Konferenčne in kongresne stavbe"]
["12301 Trgovske stavbe"]
["12302 Sejemske dvorane, razstavišča"]
["12303 Oskrbne postaje"]
["12304 Stavbe za storitvene dejavnosti"]
["12410 Postajna poslopja, terminali, stavbe za izvajanje komunikacij ter z njimi povezane stavbe"]
["12420 Garažne stavbe"]
["12510 Industrijske stavbe"]
["12520 Rezervoarji, silosi in skladiščne stavbe"]
["12610 Stavbe za kulturo in razvedrilo"]
["12620 Muzeji, arhivi in knjižnice"]
["12630 Stavbe za izobraževanje in znanstvenoraziskovalno delo"]
["12640 Stavbe za zdravstveno oskrbo"]
["12650 Stavbe za šport"]
["12711 Stavbe za rastlinsko pridelavo"]
["12712 Stavbe za rejo živali"]
["12713 Stavbe za skladiščenje pridelka"]
["12714 Druge nestanovanjske kmetijske stavbe"]
["12721 Stavbe za opravljanje verskih obredov"]
["12722 Pokopališke stavbe"]
["12730 Kulturna dediščina, ki se ne uporablja za druge namene"]
["12741 Vojašnice in stavbe za nastanitev policistov"]
["12742 Stavbe sil za zaščito, reševanje in pomoč, gasilski domovi"]
["12743 Zaklonišča"]
["12744 Sanitarije"]
["12745 Stavbe za funkcionalno dopolnitev"]
["12746 Druge stavbe, ki niso uvrščene drugje"]
[]
["CC-SI GRADBENI INŽENIRSKI OBJEKTI"]
[]
["21111 Avtoceste, hitre ceste in glavne ceste (daljinske ceste)"]
["21112 Regionalne ceste"]
["21121 Lokalne ceste in javne poti, nekategorizirane ceste in gozdne ceste"]
["21122 Parkirišča izven vozišča"]
["21210 Glavne in regionalne železniške proge"]
["21220 Mestne železniške proge"]
["21301 Letališke steze in ploščadi"]
["21302 Letalski radio-navigacijski objekti"]
["21410 Mostovi, viadukti, nadvozi, nadhodi"]
["21421 Predori"]
["21422 Podhodi"]
["21423 Pokriti vkopi in galerije"]
["21510 Pristanišča in plovbne poti"]
["21520 Jezovi, vodne pregrade in drugi vodni objekti"]
["21530 Sistem za namakanje in osuševanje, akvadukti"]
["22110 Naftovodi in daljinski (prenosni) plinovodi"]
["22121 Daljinski (transportni) vodovodi"]
["22122 Objekti za črpanje, filtriranje in zajem vode"]
["22130 Daljinsko (hrbtenično) komunikacijsko omrežje"]
["22140 Daljinski (prenosni) elektroenergetski vodi"]
["22210 Lokalni (distribucijski) plinovodi"]
["22221 Lokalni vodovodi za pitno vodo in cevovodi za tehnološko vodo"]
["22222 Lokalni cevovodi za toplo vodo, paro in stisnjen zrak"]
["22223 Vodni stolpi in vodnjaki"]
["22231 Cevovodi za odpadno vodo (kanalizacija)"]
["22232 Čistilne naprave"]
["22241 Lokalni (distribucijski) elektroenergetski vodi"]
["22242 Lokalna (dostopovna) komunikacijska omrežja"]
["23010 Objekti za pridobivanje in izkoriščanje mineralnih surovin"]
["23021 Elektrarne in drugi energetski objekti"]
["23022 Hranilniki električne energije"]
["23030 Objekti kemične industrije"]
["23040 Objekti industrije, ki niso uvrščeni drugje"]
["24110 Športna igrišča"]
["24121 Marine"]
["24122 Drugi gradbeni inženirski objekti za šport, rekreacijo in prosti čas"]
["24201 Obrambni objekti"]
["24202 Drugi kmetijski gradbeni inženirski objekti"]
["24203 Objekti za ravnanje z odpadki"]
["24204 Pokopališča"]
["24205 Objekti za preprečitev zdrsa in ograditev"]
["24206 Odprta skladišča in odprte prodajne površine"]
["24207 Nepokrita prezentirana arheološka najdišča in ruševine"]
["24208 Drugi gradbeni inženirski objekti, ki niso uvrščeni drugje"]
[]
["ZVKDS"]
[]
["ZVKDS, Območna enota Celje","Glavni trg 1, 3000 Celje","tajnistvo.ce@zvkds.si"]
["ZVKDS, Območna enota Kranj","Tomšičeva ulica 7, 4000 Kranj","tajnistvo.kr@zvkds.si"]
["ZVKDS, Območna enota Ljubljana","Tržaška cesta 4, 1000 Ljubljana","tajnistvo.lj@zvkds.si"]
["ZVKDS, Območna enota Maribor","Slomškov trg 6, 2000 Maribor","tajnistvo.mb@zvkds.si"]
["ZVKDS, Območna enota Nova Gorica","Delpinova ulica 16, 5000 Nova Gorica","tajnistvo.ng@zvkds.si"]
["ZVKDS, Območna enota Novo mesto","Skalickega ulica 1, 8000 Novo mesto","tajnistvo.nm@zvkds.si"]
["ZVKDS, Območna enota Piran","Trg bratstva 1, 6330 Piran/Pirano","tajnistvo.pi@zvkds.si"]
[]
["Zavod RS za varstvo narave"]
[]
["Zavod RS za varstvo narave, OE Celje","Vodnikova ulica 3, 3000 Celje","zrsvn.oece@zrsvn.si"]
["Zavod RS za varstvo narave, OE Kranj","PC Planina 3, 4000 Kranj","zrsvn.oekr@zrsvn.si"]
["Zavod RS za varstvo narave, OE Ljubljana","Cankarjeva 10, 1000 Ljubljana","zrsvn.oelj@zrsvn.si"]
["Zavod RS za varstvo narave, OE Maribor","Pobreška cesta 20a, 2000 Maribor","zrsvn.oemb@zrsvn.si"]
["Zavod RS za varstvo narave, OE Nova Gorica","Delpinova 16, 5000 Nova Gorica","zrsvn.oeng@zrsvn.si"]
["Zavod RS za varstvo narave, OE Novo mesto","Adamičeva ul. 2, 8000 Novo mesto","zrsvn.oenm@zrsvn.si"]
["Zavod RS za varstvo narave, OE Piran","Trg Etbina Kristana1, 6310 Izola","zrsvn.oepi@zrsvn.si"]
["Zavod RS za varstvo narave, Osrednja enota v Ljubljani","Tobačna ulica 5, 1000 Ljubljana","zrsvn.oe@zrsvn.si"]
[]
["Direkcija RS za vode"]
[]
["Direkcija Republike Slovenije za vode","Hajdrihova ulica 28c, 1000 Ljubljana","gp.drsv@gov.si"]
["Direkcija RS za vode, Sektor območja zgornje Save","Ulica Mirka Vadnova 5, 4000 Kranj","gp.drsv-kr@gov.si"]
["Direkcija RS za vode, Sektor območja srednje Save","Vojkova cesta 52, 1000 Ljubljana","gp.drsv-lj@gov.si"]
["Direkcija RS za vode, Sektor območja spodnje Save","Novi trg 9, 8000 Novo mesto","gp.drsv-nm@gov.si"]
["Direkcija RS za vode, Sektor območja jadranskih rek z morjem","Pristaniška ulica 12, 6000 Koper","gp.drsv-kp@gov.si"]
["Direkcija RS za vode, Sektor območja Soče","Cankarjeva ulica 62, 5000 Nova Gorica","gp.drsv-ng@gov.si"]
["Direkcija RS za vode, Sektor območja Savinje","Mariborska cesta 88, 3000 Celje","gp.drsv-ce@gov.si"]
["Direkcija RS za vode, Sektor območja Drave","Krekova ulica 17, 2000 Maribor","gp.drsv-mb@gov.si"]
["Direkcija RS za vode, Sektor območja Mure","Slovenska ulica 2, 9000 Murska Sobota","gp.drsv-ms@gov.si"]
[]
["Zavod za gozdove Slovenije"]
[]
["Zavod za gozdove Slovenije, Centralna enota Ljubljana","Večna pot 2, 1001 Ljubljana","zgs.tajnistvo@zgs.si"]
["ZGS, Območna enota Tolmin","Tumov drevored 17, 5220 Tolmin","OETolmin@zgs.si"]
["ZGS, Območna enota Ljubljana","Tržaška c. 2, 1000 Ljubljana","OELjubljana@zgs.si"]
["ZGS, Območna enota Novo mesto","Gubčeva 15, 8000 Novo mesto","OENovomesto@zgs.si"]
["ZGS, Območna enota Nazarje","Savinjska cesta 4, 3331 Nazarje","OENazarje@zgs.si"]
["ZGS, Območna enota Murska Sobota","Arh. Novaka 17, 9000 Murska Sobota","OEMurskaSobota@zgs.si"]
["Zavod za gozdove Slovenije, Območna enota Bled","Ljubljanska cesta 19, 4260 Bled","OEBled@zgs.si"]
["Zavod za gozdove Slovenije, Območna enota Postojna","Vojkova 9, 6230 Postojna","OEPostojna@zgs.si"]
["Zavod za gozdove Slovenije, Območna enota Brežice","C. bratov Milavcev 61, 8250 Brežice","OEBrezice@zgs.si"]
["Zavod za gozdove Slovenije, Območna enota Slovenj Gradec","Vorančev trg 1, 2380 Slovenj gradec","OESlovenjGradec@zgs.si"]
["Zavod za gozdove Slovenije, Območna enota Sežana","Partizanska 49, 6210 Sežana","OESezana@zgs.si"]
["Zavod za gozdove Slovenije, Območna enota Kranj","C. Staneta Žagarja 27b, 4000 Kranj","OEKranj@zgs.si"]
["Zavod za gozdove Slovenije, Območna enota Kočevje","Rožna ul. 39, 1330 Kočevje","OEKocevje@zgs.si"]
["Zavod za gozdove Slovenije, Območna enota Celje","Ljubljanska 13, 3000 Celje","OECelje@zgs.si"]
["Zavod za gozdove Slovenije, Območna enota Maribor","Tyrševa 15, 2000 Maribor","OEMaribor@zgs.si"]
[]
["Upravljavec javne ceste"]
[]
["Direkcija RS za infrastrukturo","Tržaška cesta 19, 1000 Ljubljana","gp.drsi@gov.si"]
["Družba za avtoceste RS ","Ulica XIV. divizije 4, 3000 Celje"]
[]
["Elektro"]
[]
["Elektro Celje","Vrunčeva 2a, 3000 Celje","info@elektro-celje.si"]
["Elektro Gorenjska","Ul. Mirka Vadnova 3a, 4000 Kranj","info@elektro-gorenjska.si"]
["Elektro Ljubljana","Slovenska cesta 58, 1516 Ljubljana","info@elektro-ljubljana.si"]
["Elektro Maribor","Vetrinjska ulica 2, 2000 Maribor","info@elektro-maribor.si"]
["Elektro Primorska","Erjavčeva ulica 22, 5000 Nova Gorica","info@elektro-primorska.si"]
["ELES","Hajdrihova 2, SI-1000 Ljubljana","info@eles.si"]
[]
["POLICIJSKA UPRAVA"]
[]
["Policijska uprava Celje ","Ljubljanska cesta 12 , 3000 Celje "]
["Policijska uprava Koper","Ukmarjev trg 6, 6000 Koper"]
["Policijska uprava Kranj","Bleiweisova cesta 3, 4000 Kranj "]
["Policijska uprava Ljubljana","Prešernova cesta 18, 1001 Ljubljana"]
["Policijska uprava Maribor","Maistrova ulica 2, 2001 Maribor"]
["Policijska uprava Murska Sobota","Ulica arhitekta Novaka 5. 9000 Murska Sobota"]
["Policijska uprava Nova Gorica ","Sedejeva ulica 11, 5000 Nova Gorica"]
["Policijska uprava Novo mesto","Ljubljanska cesta 30, 8000 Novo mesto "]
[]
["PODLAGE ZA PROJEKTIRANJE"]
[]
["TSG požarna varnost v stavbah"]
["zadnje stanje gradbene tehnike"]
[]
["TSG nizkonapetostne električne inštalacije"]
["zadnje stanje gradbene tehnike"]
[]
["TSG zaščita pred delovanjem strele"]
["zadnje stanje gradbene tehnike"]
[]
["TSG učinkovita raba energije"]
[]
["TSG zaščita pred hrupom v stavbah"]
["zadnje stanje gradbene tehnike"]
[]
["uporaba evrokodov"]
["uporaba drugih pravil"]
["brez uporabe pravil"]
[]
["MNENJA"]
[]
["OBČINA"]
[]
["VAROVANA OBMOČJA"]
["VARSTVO KULTURNE DEDIŠČINE - POSEG"]
["VARSTVO KULTURNE DEDIŠČINE - RAZISKAVA IN ODSTRANITEV"]
["VARSTVO NARAVE"]
["VARSTVO PODZEMNIH JAM"]
["VARSTVO VODA"]
["VARSTVO GOZDOV"]
["RIBIŠKI OKOLIŠ"]
["OKOLJE DIVJADI"]
["OBMOČJE MEJNEGA PREHODA"]
["CARINA"]
["LETALIŠČA"]
["OVIRE ZA ZRAČNI PROMET"]
["VARNOST PLOVBE"]
["OBJEKT V MEJAH RUDNIŠKEGA PROSTORA"]
["OBJEKT V VAROVALNEM PASU ŽIČNIŠKE NAPRAVE"]
[]
["VAROVALNI PASOVI INFRASTRUKTURE"]
["VODOVOD"]
["ELEKTRIKA"]
["PLIN"]
["TOPLOVOD"]
["FEKALNE VODE"]
["METEORNE VODE"]
["KOMUNIKACIJSKI VODI"]
["JAVNE CESTE"]
["ŽELEZNICE - GRADNJA"]
["ŽELEZNICE"]
[]
["PRIKLJUČEVANJE NA INFRASTRUKTURO"]
["VODOVOD"]
["ELEKTRIKA"]
["PLIN"]
["TOPLOVOD"]
["FEKALNE VODE"]
["METEORNE VODE"]
["DOSTOP"]
["KOMUNIKACIJE"]
[]
["DRUGA MNENJA"]
["JEDRSKA VARNOST "]
["SEVALNA VARNOST "]
["KMETIJSKO GOSPODARSTVO"]
["VETERINA"]
["OBRAMBA"]